[Event "Kvibergspelen 2022"]
[Site "Kviberg Park Hotel & Conference, Krutvagen 2, Gothenburg, Sweden"]
[Date "2022.10.02"]
[Round "7.6"]
[White "Rasti, Arvin"]
[Black "Bohman Karlholm, Adrian"]
[Result "1-0"]
[TimeControl "15 minutes + 5 seconds per move from move one (Round 1 - 4) / 90 minutes + 30 seconds per move from move one (Round 5 - 8)"]
[WhiteFideId "1741160"]
[BlackFideId "1720643"]
[WhiteElo "2186"]
[BlackElo "2117"]

1. e4 {[%clk 01:30:56]} {[%emt 00:00:03]} c5 {[%clk 01:30:53]} {[%emt
00:00:07]} 2. Nf3 {[%clk 01:31:12]} {[%emt 00:00:15]} d6 {[%clk 01:31:15]}
{[%emt 00:00:08]} 3. Bb5+ {[%clk 01:31:27]} {[%emt 00:00:15]} Nd7 {[%clk
01:31:33]} {[%emt 00:00:11]} 4. O-O {[%clk 01:31:47]} {[%emt 00:00:10]} a6
{[%clk 01:31:12]} {[%emt 00:00:52]} 5. Bd3 {[%clk 01:32:06]} {[%emt 00:00:11]}
Ngf6 {[%clk 01:31:04]} {[%emt 00:00:37]} 6. Re1 {[%clk 01:32:19]} {[%emt
00:00:17]} e6 {[%clk 01:30:45]} {[%emt 00:00:49]} 7. c3 {[%clk 01:32:25]}
{[%emt 00:00:24]} b5 {[%clk 01:29:46]} {[%emt 00:01:30]} 8. a4 {[%clk
01:27:28]} {[%emt 00:05:26]} c4 {[%clk 01:29:40]} {[%emt 00:00:35]} 9. Bf1
{[%clk 01:26:23]} {[%emt 00:01:35]} Bb7 {[%clk 01:28:01]} {[%emt 00:02:10]} 10.
axb5 {[%clk 01:25:41]} {[%emt 00:01:13]} axb5 {[%clk 01:28:22]} {[%emt
00:00:09]} 11. Rxa8 {[%clk 01:25:56]} {[%emt 00:00:15]} Qxa8 {[%clk 01:28:28]}
{[%emt 00:00:25]} 12. d3 {[%clk 01:16:53]} {[%emt 00:09:31]} cxd3 {[%clk
01:20:09]} {[%emt 00:08:49]} 13. Bxd3 {[%clk 01:17:15]} {[%emt 00:00:09]} Bxe4
{[%clk 01:19:15]} {[%emt 00:01:24]} 14. Bxe4 {[%clk 01:13:21]} {[%emt
00:04:23]} Nxe4 {[%clk 01:19:35]} {[%emt 00:00:10]} 15. Na3 {[%clk 01:07:42]}
{[%emt 00:06:09]} b4 {[%clk 01:02:32]} {[%emt 00:17:33]} 16. cxb4 {[%clk
01:07:57]} {[%emt 00:00:16]} d5 {[%clk 01:02:04]} {[%emt 00:00:57]} 17. Qd4
{[%clk 01:06:20]} {[%emt 00:02:07]} Qa4 {[%clk 00:59:00]} {[%emt 00:03:34]} 18.
b5 {[%clk 01:02:15]} {[%emt 00:04:35]} Qxd4 {[%clk 00:58:56]} {[%emt 00:00:34]}
19. Nxd4 {[%clk 01:02:43]} {[%emt 00:00:02]} Bc5 {[%clk 00:57:53]} {[%emt
00:01:33]} 20. Be3 {[%clk 01:02:38]} {[%emt 00:00:36]} O-O {[%clk 00:57:01]}
{[%emt 00:01:22]} 21. Nc6 {[%clk 00:57:37]} {[%emt 00:05:30]} Ra8 {[%clk
00:52:46]} {[%emt 00:04:45]} 22. Rc1 {[%clk 00:55:53]} {[%emt 00:02:14]} Bxe3
{[%clk 00:50:42]} {[%emt 00:02:34]} 23. fxe3 {[%clk 00:56:22]} {[%emt
00:00:01]} Nb6 {[%clk 00:47:43]} {[%emt 00:03:29]} 24. Ne5 {[%clk 00:54:52]}
{[%emt 00:01:59]} Rc8 {[%clk 00:46:40]} {[%emt 00:01:34]} 25. Rc6 {[%clk
00:48:13]} {[%emt 00:07:09]} Rxc6 {[%clk 00:42:25]} {[%emt 00:04:45]} 26. bxc6
{[%clk 00:48:37]} {[%emt 00:00:07]} Kf8 {[%clk 00:41:05]} {[%emt 00:01:50]} 27.
Nb5 {[%clk 00:48:13]} {[%emt 00:00:54]} Ke7 {[%clk 00:36:22]} {[%emt 00:05:12]}
28. Kf1 {[%clk 00:43:17]} {[%emt 00:05:26]} f6 {[%clk 00:35:06]} {[%emt
00:01:47]} 29. Nd3 {[%clk 00:43:24]} {[%emt 00:00:23]} Nd6 {[%clk 00:33:01]}
{[%emt 00:02:34]} 30. Nc7 {[%clk 00:43:10]} {[%emt 00:00:44]} Ne8 {[%clk
00:28:01]} {[%emt 00:05:31]} 31. Nxe8 {[%clk 00:42:44]} {[%emt 00:00:55]} Kxe8
{[%clk 00:28:25]} {[%emt 00:00:06]} 32. Nc5 {[%clk 00:40:17]} {[%emt 00:02:57]}
Ke7 {[%clk 00:25:57]} {[%emt 00:02:58]} 33. Ke2 {[%clk 00:34:18]} {[%emt
00:06:30]} Kd6 {[%clk 00:24:51]} {[%emt 00:01:36]} 34. b4 {[%clk 00:34:21]}
{[%emt 00:00:27]} e5 {[%clk 00:24:42]} {[%emt 00:00:39]} 35. c7 {[%clk
00:34:40]} {[%emt 00:00:11]} g6 {[%clk 00:22:40]} {[%emt 00:02:32]} 36. Na6
{[%clk 00:34:19]} {[%emt 00:00:51]} Kc6 {[%clk 00:22:03]} {[%emt 00:01:06]} 37.
Kd3 {[%clk 00:34:37]} {[%emt 00:00:12]} Kb7 {[%clk 00:19:53]} {[%emt 00:02:40]}
38. b5 {[%clk 00:34:47]} {[%emt 00:00:20]} Na8 {[%clk 00:20:01]} {[%emt
00:00:22]} 39. e4 {[%clk 00:32:28]} {[%emt 00:02:50]} d4 {[%clk 00:15:49]}
{[%emt 00:04:42]} 40. Kc4 {[%clk 00:32:01]} {[%emt 00:00:56]} Nxc7 {[%clk
00:14:38]} {[%emt 00:01:41]} 41. Nc5+ {[%clk 00:32:14]} {[%emt 00:00:17]} Kc8
{[%clk 00:08:53]} {[%emt 00:06:15]} 42. b6 {[%clk 00:32:11]} {[%emt 00:00:34]}
Ne8 {[%clk 00:09:14]} {[%emt 00:00:08]} 43. Kd5 {[%clk 00:31:48]} {[%emt
00:00:53]} d3 {[%clk 00:03:58]} {[%emt 00:05:46]} 44. Kc6 {[%clk 00:31:41]}
{[%emt 00:00:37]} Nd6 {[%clk 00:03:56]} {[%emt 00:00:33]} 45. Kxd6 {[%clk
00:32:05]} {[%emt 00:00:05]} d2 {[%clk 00:04:20]} {[%emt 00:00:06]} 46. Kc6
{[%clk 00:32:32]} {[%emt 00:00:03]} d1=Q {[%clk 00:03:58]} {[%emt 00:00:52]} 47.
b7+ {[%clk 00:32:56]} {[%emt 00:00:07]} 1-0

[Event "Kvibergspelen 2022"]
[Site "Kviberg Park Hotel & Conference, Krutvagen 2, Gothenburg, Sweden"]
[Date "2022.10.02"]
[Round "7.7"]
[White "Johannsson, Birkir Isak"]
[Black "Abdrlauf, Elham"]
[Result "0-1"]
[TimeControl "15 minutes + 5 seconds per move from move one (Round 1 - 4) / 90 minutes + 30 seconds per move from move one (Round 5 - 8)"]
[BlackTitle "IM"]
[WhiteFideId "2314673"]
[BlackFideId "1533533"]
[WhiteElo "2165"]
[BlackElo "2487"]

1. c4 {[%clk 01:30:56]} {[%emt 00:00:02]} e5 {[%clk 01:24:53]} {[%emt
00:06:08]} 2. Nc3 {[%clk 01:31:12]} {[%emt 00:00:14]} Nf6 {[%clk 01:25:17]}
{[%emt 00:00:05]} 3. Nf3 {[%clk 01:31:30]} {[%emt 00:00:11]} e4 {[%clk
01:24:49]} {[%emt 00:00:59]} 4. Ng5 {[%clk 01:31:51]} {[%emt 00:00:09]} c6
{[%clk 01:25:15]} {[%emt 00:00:05]} 5. Qa4 {[%clk 01:32:07]} {[%emt 00:00:14]}
d5 {[%clk 01:22:29]} {[%emt 00:03:16]} 6. cxd5 {[%clk 01:30:56]} {[%emt
00:01:41]} b5 {[%clk 01:22:28]} {[%emt 00:00:31]} 7. Qc2 {[%clk 01:31:11]}
{[%emt 00:00:14]} cxd5 {[%clk 01:17:25]} {[%emt 00:05:34]} 8. Nxb5 {[%clk
01:28:59]} {[%emt 00:02:42]} Na6 {[%clk 01:17:46]} {[%emt 00:00:09]} 9. Qc6+
{[%clk 01:24:04]} {[%emt 00:05:25]} Qd7 {[%clk 01:18:09]} {[%emt 00:00:06]} 10.
Qxa8 {[%clk 01:21:15]} {[%emt 00:03:19]} Bc5 {[%clk 01:18:25]} {[%emt
00:00:14]} 11. g3 {[%clk 01:21:24]} {[%emt 00:00:22]} Ng4 {[%clk 01:08:23]}
{[%emt 00:10:32]} 12. e3 {[%clk 00:58:01]} {[%emt 00:23:52]} O-O {[%clk
01:05:43]} {[%emt 00:03:10]} 13. Be2 {[%clk 00:51:34]} {[%emt 00:06:58]} Bb7
{[%clk 01:04:11]} {[%emt 00:02:02]} 14. Bxg4 {[%clk 00:47:23]} {[%emt
00:04:41]} Qxb5 {[%clk 01:03:42]} {[%emt 00:00:59]} 15. Qxf8+ {[%clk 00:46:36]}
{[%emt 00:01:17]} Bxf8 {[%clk 01:03:58]} {[%emt 00:00:13]} 16. Be2 {[%clk
00:46:37]} {[%emt 00:00:30]} Qd7 {[%clk 01:04:26]} {[%emt 00:00:01]} 17. h4
{[%clk 00:45:05]} {[%emt 00:02:03]} Nb4 {[%clk 01:03:33]} {[%emt 00:01:22]} 18.
Kf1 {[%clk 00:44:20]} {[%emt 00:01:16]} d4 {[%clk 01:03:11]} {[%emt 00:00:51]}
19. Kg2 {[%clk 00:43:26]} {[%emt 00:01:24]} Nc2 {[%clk 00:56:01]} {[%emt
00:07:39]} 20. Rb1 {[%clk 00:41:55]} {[%emt 00:02:03]} d3 {[%clk 00:56:22]}
{[%emt 00:00:09]} 21. Bd1 {[%clk 00:41:46]} {[%emt 00:00:40]} Bd5 {[%clk
00:56:41]} {[%emt 00:00:09]} 22. b3 {[%clk 00:41:49]} {[%emt 00:00:27]} h6
{[%clk 00:57:06]} {[%emt 00:00:06]} 23. Nh3 {[%clk 00:42:11]} {[%emt 00:00:08]}
Be6 {[%clk 00:57:29]} {[%emt 00:00:07]} 24. Nf4 {[%clk 00:38:37]} {[%emt
00:04:04]} Bg4 {[%clk 00:57:34]} {[%emt 00:00:24]} 25. Bb2 {[%clk 00:38:49]}
{[%emt 00:00:19]} Bd6 {[%clk 00:56:01]} {[%emt 00:02:03]} 26. Bc3 {[%clk
00:38:03]} {[%emt 00:01:15]} Bxf4 {[%clk 00:55:03]} {[%emt 00:01:28]} 27. exf4
{[%clk 00:38:09]} {[%emt 00:00:25]} Be2 {[%clk 00:54:39]} {[%emt 00:00:53]} 28.
Rc1 {[%clk 00:35:24]} {[%emt 00:03:15]} Qg4 {[%clk 00:54:28]} {[%emt 00:00:42]}
29. Bxe2 {[%clk 00:31:47]} {[%emt 00:04:07]} dxe2 {[%clk 00:54:39]} {[%emt
00:00:17]} 30. Rhe1 {[%clk 00:31:28]} {[%emt 00:00:51]} Qf3+ {[%clk 00:54:43]}
{[%emt 00:00:26]} 31. Kg1 {[%clk 00:31:50]} {[%emt 00:00:08]} Nxe1 {[%clk
00:54:39]} {[%emt 00:00:34]} 32. Rxe1 {[%clk 00:32:18]} {[%emt 00:00:02]} Qd3
{[%clk 00:52:58]} {[%emt 00:02:10]} 33. Kh2 {[%clk 00:31:54]} {[%emt 00:00:54]}
Kh7 {[%clk 00:52:52]} {[%emt 00:00:37]} 34. a4 {[%clk 00:31:34]} {[%emt
00:00:51]} Kg6 {[%clk 00:53:11]} {[%emt 00:00:10]} 35. b4 {[%clk 00:31:49]}
{[%emt 00:00:16]} Kf5 {[%clk 00:53:26]} {[%emt 00:00:14]} 36. Kh3 {[%clk
00:31:56]} {[%emt 00:00:23]} Qc2 {[%clk 00:53:15]} {[%emt 00:00:40]} 0-1

[Event "Kvibergspelen 2022"]
[Site "Kviberg Park Hotel & Conference, Krutvagen 2, Gothenburg, Sweden"]
[Date "2022.10.02"]
[Round "7.9"]
[White "Burwick, Malte"]
[Black "Strom-Engdahl, Alexander"]
[Result "1-0"]
[TimeControl "15 minutes + 5 seconds per move from move one (Round 1 - 4) / 90 minutes + 30 seconds per move from move one (Round 5 - 8)"]
[WhiteFideId "1702475"]
[BlackFideId "1741586"]
[WhiteElo "2225"]
[BlackElo "2114"]

1. Nf3 {[%clk 01:30:41]} {[%emt 00:00:18]} d5 {[%clk 01:30:53]} {[%emt
00:00:07]} 2. d4 {[%clk 01:28:35]} {[%emt 00:02:36]} Nf6 {[%clk 01:30:56]}
{[%emt 00:00:27]} 3. e3 {[%clk 01:23:49]} {[%emt 00:05:16]} e6 {[%clk
01:27:29]} {[%emt 00:03:58]} 4. Bd3 {[%clk 01:23:45]} {[%emt 00:00:34]} c5
{[%clk 01:27:47]} {[%emt 00:00:12]} 5. c3 {[%clk 01:18:27]} {[%emt 00:05:48]}
Nc6 {[%clk 01:26:18]} {[%emt 00:01:58]} 6. Nbd2 {[%clk 01:18:36]} {[%emt
00:00:21]} Be7 {[%clk 01:25:36]} {[%emt 00:01:12]} 7. O-O {[%clk 01:18:46]}
{[%emt 00:00:20]} O-O {[%clk 01:25:59]} {[%emt 00:00:07]} 8. Ne5 {[%clk
01:18:38]} {[%emt 00:00:38]} Qc7 {[%clk 01:15:36]} {[%emt 00:10:55]} 9. f4
{[%clk 01:16:01]} {[%emt 00:03:06]} b6 {[%clk 01:12:30]} {[%emt 00:03:36]} 10.
Rf3 {[%clk 01:07:54]} {[%emt 00:08:38]} Bb7 {[%clk 01:11:17]} {[%emt 00:01:42]}
11. Rh3 {[%clk 01:06:55]} {[%emt 00:01:28]} g6 {[%clk 01:04:35]} {[%emt
00:07:12]} 12. Qf3 {[%clk 00:56:18]} {[%emt 00:11:07]} Nxe5 {[%clk 00:52:37]}
{[%emt 00:12:29]} 13. fxe5 {[%clk 00:56:10]} {[%emt 00:00:38]} Ne4 {[%clk
00:53:01]} {[%emt 00:00:05]} 14. Nxe4 {[%clk 00:54:20]} {[%emt 00:02:20]} dxe4
{[%clk 00:53:24]} {[%emt 00:00:07]} 15. Bxe4 {[%clk 00:54:41]} {[%emt
00:00:09]} Bxe4 {[%clk 00:53:50]} {[%emt 00:00:05]} 16. Qxe4 {[%clk 00:54:52]}
{[%emt 00:00:18]} Qd7 {[%clk 00:47:15]} {[%emt 00:07:06]} 17. Qd3 {[%clk
00:41:46]} {[%emt 00:13:35]} f6 {[%clk 00:35:58]} {[%emt 00:11:48]} 18. exf6
{[%clk 00:40:12]} {[%emt 00:02:03]} Bxf6 {[%clk 00:35:47]} {[%emt 00:00:41]} 19.
Rf3 {[%clk 00:30:50]} {[%emt 00:09:52]} Rad8 {[%clk 00:32:40]} {[%emt
00:03:38]} 20. b3 {[%clk 00:15:41]} {[%emt 00:15:39]} e5 {[%clk 00:21:41]}
{[%emt 00:11:29]} 21. Ba3 {[%clk 00:15:58]} {[%emt 00:00:13]} Rf7 {[%clk
00:21:33]} {[%emt 00:00:38]} 22. Qc4 {[%clk 00:15:50]} {[%emt 00:00:38]} Kg7
{[%clk 00:19:42]} {[%emt 00:02:21]} 23. dxc5 {[%clk 00:13:31]} {[%emt
00:02:49]} bxc5 {[%clk 00:15:34]} {[%emt 00:04:38]} 24. Bxc5 {[%clk 00:11:35]}
{[%emt 00:02:26]} Qd3 {[%clk 00:14:16]} {[%emt 00:01:47]} 25. Qxd3 {[%clk
00:10:19]} {[%emt 00:01:45]} Rxd3 {[%clk 00:14:36]} {[%emt 00:00:11]} 26. e4
{[%clk 00:10:45]} {[%emt 00:00:04]} Rxf3 {[%clk 00:12:16]} {[%emt 00:02:50]} 27.
gxf3 {[%clk 00:11:10]} {[%emt 00:00:05]} Rd7 {[%clk 00:12:33]} {[%emt
00:00:14]} 28. Rc1 {[%clk 00:07:46]} {[%emt 00:03:53]} Bg5 {[%clk 00:12:35]}
{[%emt 00:00:28]} 29. Rc2 {[%clk 00:08:04]} {[%emt 00:00:12]} a6 {[%clk
00:12:54]} {[%emt 00:00:12]} 30. b4 {[%clk 00:06:10]} {[%emt 00:02:24]} Kh6
{[%clk 00:11:37]} {[%emt 00:01:46]} 31. a4 {[%clk 00:05:36]} {[%emt 00:01:05]}
Kh5 {[%clk 00:11:33]} {[%emt 00:00:33]} 32. b5 {[%clk 00:05:32]} {[%emt
00:00:35]} axb5 {[%clk 00:11:56]} {[%emt 00:00:07]} 33. axb5 {[%clk 00:05:54]}
{[%emt 00:00:08]} Kh4 {[%clk 00:12:08]} {[%emt 00:00:17]} 34. Kg2 {[%clk
00:06:07]} {[%emt 00:00:17]} Bd8 {[%clk 00:09:16]} {[%emt 00:03:23]} 35. c4
{[%clk 00:06:04]} {[%emt 00:00:33]} 1-0

[Event "Kvibergspelen 2022"]
[Site "Kviberg Park Hotel & Conference, Krutvagen 2, Gothenburg, Sweden"]
[Date "2022.10.02"]
[Round "7.10"]
[White "Fridgeirsson, Dagur Andri"]
[Black "Johannesson, Oliver"]
[Result "1/2-1/2"]
[TimeControl "15 minutes + 5 seconds per move from move one (Round 1 - 4) / 90 minutes + 30 seconds per move from move one (Round 5 - 8)"]
[BlackTitle "FM"]
[WhiteFideId "2303124"]
[BlackFideId "2305623"]
[WhiteElo "1943"]
[BlackElo "2205"]

1. d4 {[%clk 01:30:47]} {[%emt 00:00:12]} d5 {[%clk 01:30:43]} {[%emt
00:00:19]} 2. c4 {[%clk 01:31:07]} {[%emt 00:00:09]} c6 {[%clk 01:31:08]}
{[%emt 00:00:05]} 3. cxd5 {[%clk 01:31:28]} {[%emt 00:00:09]} cxd5 {[%clk
01:31:33]} {[%emt 00:00:06]} 4. Nc3 {[%clk 01:31:51]} {[%emt 00:00:06]} Nf6
{[%clk 01:30:21]} {[%emt 00:01:41]} 5. Nf3 {[%clk 01:32:08]} {[%emt 00:00:13]}
Nc6 {[%clk 01:30:45]} {[%emt 00:00:07]} 6. Bf4 {[%clk 01:32:26]} {[%emt
00:00:11]} a6 {[%clk 01:30:32]} {[%emt 00:00:45]} 7. e3 {[%clk 01:32:38]}
{[%emt 00:00:17]} Bf5 {[%clk 01:30:36]} {[%emt 00:00:26]} 8. a3 {[%clk
01:32:15]} {[%emt 00:00:55]} e6 {[%clk 01:30:10]} {[%emt 00:00:53]} 9. Bd3
{[%clk 01:32:19]} {[%emt 00:00:26]} Bxd3 {[%clk 01:30:15]} {[%emt 00:00:26]} 10.
Qxd3 {[%clk 01:32:37]} {[%emt 00:00:11]} Bd6 {[%clk 01:30:41]} {[%emt
00:00:05]} 11. O-O {[%clk 01:32:21]} {[%emt 00:00:45]} O-O {[%clk 01:30:58]}
{[%emt 00:00:14]} 12. Bg3 {[%clk 01:25:42]} {[%emt 00:07:08]} Bxg3 {[%clk
01:29:28]} {[%emt 00:02:01]} 13. hxg3 {[%clk 01:26:04]} {[%emt 00:00:08]} Rc8
{[%clk 01:29:50]} {[%emt 00:00:07]} 14. Rac1 {[%clk 01:26:24]} {[%emt
00:00:11]} b5 {[%clk 01:26:38]} {[%emt 00:03:43]} 1/2-1/2

[Event "Kvibergspelen 2022"]
[Site "Kviberg Park Hotel & Conference, Krutvagen 2, Gothenburg, Sweden"]
[Date "2022.10.02"]
[Round "7.11"]
[White "Nygren, David"]
[Black "Dingertz, Erik"]
[Result "1/2-1/2"]
[TimeControl "15 minutes + 5 seconds per move from move one (Round 1 - 4) / 90 minutes + 30 seconds per move from move one (Round 5 - 8)"]
[WhiteFideId "1704761"]
[BlackFideId "1741578"]
[WhiteElo "2165"]
[BlackElo "2001"]

1. e4 {[%clk 01:30:57]} {[%emt 00:00:02]} e5 {[%clk 01:30:54]} {[%emt
00:00:07]} 2. Nf3 {[%clk 01:31:08]} {[%emt 00:00:18]} Nc6 {[%clk 01:31:15]}
{[%emt 00:00:09]} 3. Bb5 {[%clk 01:31:31]} {[%emt 00:00:08]} a6 {[%clk
01:31:35]} {[%emt 00:00:11]} 4. Ba4 {[%clk 01:31:51]} {[%emt 00:00:09]} Nf6
{[%clk 01:31:55]} {[%emt 00:00:09]} 5. d4 {[%clk 01:32:04]} {[%emt 00:00:18]}
Nxe4 {[%clk 01:27:58]} {[%emt 00:04:26]} 6. Qe2 {[%clk 01:32:09]} {[%emt
00:00:25]} b5 {[%clk 01:25:23]} {[%emt 00:03:07]} 7. dxe5 {[%clk 01:30:21]}
{[%emt 00:02:17]} Nc5 {[%clk 01:15:50]} {[%emt 00:10:02]} 8. Bb3 {[%clk
01:30:34]} {[%emt 00:00:18]} Nxb3 {[%clk 01:15:29]} {[%emt 00:00:51]} 9. axb3
{[%clk 01:30:24]} {[%emt 00:00:40]} Bb4+ {[%clk 01:13:07]} {[%emt 00:02:52]} 10.
Bd2 {[%clk 01:25:45]} {[%emt 00:05:09]} Bxd2+ {[%clk 01:12:30]} {[%emt
00:01:06]} 11. Nbxd2 {[%clk 01:26:00]} {[%emt 00:00:16]} O-O {[%clk 01:12:49]}
{[%emt 00:00:12]} 12. O-O-O {[%clk 01:23:36]} {[%emt 00:02:54]} f6 {[%clk
01:10:32]} {[%emt 00:02:46]} 13. exf6 {[%clk 01:18:23]} {[%emt 00:05:44]} Qxf6
{[%clk 01:10:21]} {[%emt 00:00:41]} 14. Ne4 {[%clk 01:18:15]} {[%emt 00:00:38]}
Qh6+ {[%clk 01:04:01]} {[%emt 00:06:49]} 15. Kb1 {[%clk 01:17:18]} {[%emt
00:01:27]} d6 {[%clk 01:04:17]} {[%emt 00:00:14]} 16. Qd3 {[%clk 01:15:01]}
{[%emt 00:02:47]} Bd7 {[%clk 00:56:04]} {[%emt 00:08:42]} 17. Rhe1 {[%clk
01:00:41]} {[%emt 00:14:52]} Rae8 {[%clk 00:45:02]} {[%emt 00:11:31]} 18. Qc3
{[%clk 00:48:38]} {[%emt 00:12:33]} Qg6 {[%clk 00:36:23]} {[%emt 00:09:09]} 19.
Ng3 {[%clk 00:46:34]} {[%emt 00:02:34]} Qf7 {[%clk 00:33:05]} {[%emt 00:03:48]}
20. Rxe8 {[%clk 00:42:13]} {[%emt 00:04:51]} Rxe8 {[%clk 00:33:17]} {[%emt
00:00:18]} 21. Re1 {[%clk 00:40:33]} {[%emt 00:02:10]} h6 {[%clk 00:24:43]}
{[%emt 00:09:04]} 22. Re3 {[%clk 00:38:45]} {[%emt 00:02:18]} Qd5 {[%clk
00:20:03]} {[%emt 00:05:10]} 23. Rd3 {[%clk 00:36:15]} {[%emt 00:03:00]} Qf7
{[%clk 00:20:08]} {[%emt 00:00:24]} 24. Qd2 {[%clk 00:32:57]} {[%emt 00:03:48]}
a5 {[%clk 00:15:06]} {[%emt 00:05:34]} 25. Re3 {[%clk 00:29:57]} {[%emt
00:03:30]} Rxe3 {[%clk 00:13:46]} {[%emt 00:01:49]} 26. Qxe3 {[%clk 00:30:03]}
{[%emt 00:00:23]} Qd5 {[%clk 00:14:06]} {[%emt 00:00:11]} 27. Qd2 {[%clk
00:28:38]} {[%emt 00:01:55]} Be6 {[%clk 00:12:16]} {[%emt 00:02:20]} 28. Ne2
{[%clk 00:25:02]} {[%emt 00:04:06]} Qxd2 {[%clk 00:09:09]} {[%emt 00:03:37]} 29.
Nxd2 {[%clk 00:25:18]} {[%emt 00:00:15]} Kf7 {[%clk 00:09:30]} {[%emt
00:00:09]} 30. Kc1 {[%clk 00:23:38]} {[%emt 00:02:09]} g5 {[%clk 00:09:24]}
{[%emt 00:00:40]} 31. Nf1 {[%clk 00:22:10]} {[%emt 00:01:55]} Ne5 {[%clk
00:08:03]} {[%emt 00:01:51]} 32. Ne3 {[%clk 00:21:18]} {[%emt 00:01:22]} c5
{[%clk 00:07:57]} {[%emt 00:00:36]} 33. f4 {[%clk 00:20:39]} {[%emt 00:01:06]}
Ng4 {[%clk 00:07:45]} {[%emt 00:00:45]} 34. Nxg4 {[%clk 00:17:57]} {[%emt
00:03:12]} Bxg4 {[%clk 00:08:01]} {[%emt 00:00:15]} 35. Kd2 {[%clk 00:18:13]}
{[%emt 00:00:13]} Bd7 {[%clk 00:04:58]} {[%emt 00:03:33]} 36. Ke3 {[%clk
00:15:36]} {[%emt 00:03:07]} Kf6 {[%clk 00:05:13]} {[%emt 00:00:15]} 37. Nc3
{[%clk 00:14:53]} {[%emt 00:01:13]} gxf4+ {[%clk 00:03:03]} {[%emt 00:02:40]}
38. Kxf4 {[%clk 00:15:07]} {[%emt 00:00:16]} Bc6 {[%clk 00:03:28]} {[%emt
00:00:05]} 39. Ne4+ {[%clk 00:14:39]} {[%emt 00:00:58]} Ke6 {[%clk 00:03:42]}
{[%emt 00:00:15]} 40. g4 {[%clk 00:14:39]} {[%emt 00:00:31]} Be8 {[%clk
00:03:03]} {[%emt 00:01:09]} 41. h4 {[%clk 00:08:34]} {[%emt 00:06:35]} Bg6
{[%clk 00:03:28]} {[%emt 00:00:04]} 42. c3 {[%clk 00:08:37]} {[%emt 00:00:27]}
b4 {[%clk 00:02:21]} {[%emt 00:01:37]} 43. cxb4 {[%clk 00:06:51]} {[%emt
00:02:16]} cxb4 {[%clk 00:02:37]} {[%emt 00:00:15]} 44. Nd2 {[%clk 00:06:49]}
{[%emt 00:00:31]} Bc2 {[%clk 00:01:48]} {[%emt 00:01:20]} 45. Ke3 {[%clk
00:04:44]} {[%emt 00:02:36]} Bd1 {[%clk 00:02:09]} {[%emt 00:00:08]} 46. g5
{[%clk 00:04:23]} {[%emt 00:00:50]} hxg5 {[%clk 00:02:34]} {[%emt 00:00:05]} 47.
hxg5 {[%clk 00:04:50]} {[%emt 00:00:05]} Kf5 {[%clk 00:03:00]} {[%emt
00:00:02]} 48. Kd4 {[%clk 00:04:49]} {[%emt 00:00:32]} a4 {[%clk 00:02:45]}
{[%emt 00:00:45]} 49. bxa4 {[%clk 00:04:30]} {[%emt 00:00:50]} Bxa4 {[%clk
00:03:11]} {[%emt 00:00:04]} 50. Ne4 {[%clk 00:03:39]} {[%emt 00:01:20]} Bc2
{[%clk 00:03:07]} {[%emt 00:00:33]} 51. Nxd6+ {[%clk 00:03:31]} {[%emt
00:00:39]} Kxg5 {[%clk 00:03:31]} {[%emt 00:00:06]} 52. Kc4 {[%clk 00:03:37]}
{[%emt 00:00:24]} b3 {[%clk 00:03:45]} {[%emt 00:00:15]} 53. Nb5 {[%clk
00:03:59]} {[%emt 00:00:08]} Kf5 {[%clk 00:03:47]} {[%emt 00:00:28]} 54. Nd4+
{[%clk 00:03:54]} {[%emt 00:00:36]} Ke5 {[%clk 00:04:11]} {[%emt 00:00:06]} 55.
Nxb3 {[%clk 00:04:22]} {[%emt 00:00:03]} Kd6 {[%clk 00:03:56]} {[%emt
00:00:44]} 56. Nd4 {[%clk 00:03:56]} {[%emt 00:00:55]} Bb1 {[%clk 00:03:55]}
{[%emt 00:00:31]} 57. b4 {[%clk 00:03:39]} {[%emt 00:00:48]} Kc7 {[%clk
00:04:17]} {[%emt 00:00:08]} 58. Kc5 {[%clk 00:03:45]} {[%emt 00:00:24]} Bd3
{[%clk 00:04:36]} {[%emt 00:00:10]} 59. Nb3 {[%clk 00:03:10]} {[%emt 00:01:06]}
Kb7 {[%clk 00:04:36]} {[%emt 00:00:30]} 60. Na5+ {[%clk 00:03:27]} {[%emt
00:00:14]} Ka6 {[%clk 00:04:46]} {[%emt 00:00:20]} 61. Nc6 {[%clk 00:03:37]}
{[%emt 00:00:20]} Kb7 {[%clk 00:04:59]} {[%emt 00:00:16]} 62. Ne5 {[%clk
00:03:53]} {[%emt 00:00:15]} 1/2-1/2